bitfinex/quotes_ETHUSD_20260228
["timestamp","ask_amount","ask_price","bid_price","bid_amount"]
[1772294517688,0.47920001,1896.9,1896.3,1.78725031]
[1772294518088,1.79718776,1896.9,1896.3,1.78725031]
[1772294518618,4.00618776,1896.9,1896.3,1.78725031]
[1772294519082,0.002,1896.8,1896.4,0.46890629]
[1772294519286,0.47920001,1897.2,1896.4,0.46890629]
[1772294519287,2.209,1897.0,1896.4,0.46890629]
[1772294519609,0.002,1897.1,1896.7,0.46890629]
[1772294519809,0.002,1897.0,1896.7,0.46890629]
[1772294520010,0.002,1897.2,1896.8,1.31800927]
[1772294520214,0.002,1897.3,1896.9,0.46890629]
[1772294520436,1.7966578,1897.6,1896.9,0.46890629]
[1772294520437,1.79669201,1897.6,1896.9,0.46890629]
[1772294520606,0.48120001,1897.5,1896.9,0.46890629]
[1772294521216,0.48120001,1897.4,1896.8,1.31800927]
[1772294521543,0.47920001,1897.4,1896.8,1.31800927]
[1772294521739,0.47920001,1897.4,1896.8,1.78691556]
[1772294521926,0.002,1897.5,1896.9,0.46890629]
[1772294522112,1.79669201,1897.6,1896.4,0.46890629]
[1772294522113,3.6175869,1897.4,1896.4,0.46890629]
[1772294522438,0.47920001,1897.3,1896.4,0.46890629]
[1772294523211,0.002,1897.2,1896.5,3.6155869]
[1772294523534,0.002,1897.2,1896.6,0.46890629]
[1772294524924,0.002,1897.1,1896.7,1.31807876]
[1772294525099,0.002,1897.2,1896.7,1.31807876]
[1772294526622,0.48120001,1897.2,1896.7,1.31807876]
[1772294526824,0.002,1897.1,1896.7,1.31807876]
[1772294527025,0.002,1897.1,1896.6,5.27233321]
[1772294527202,0.002,1897.0,1896.5,1.31821776]
[1772294527421,0.48120001,1897.1,1896.5,1.31821776]
[1772294527815,0.002,1897.0,1896.5,1.31821776]
[1772294528243,0.002,1897.0,1896.6,0.001]
[1772294528437,0.002,1896.9,1896.6,0.001]
[1772294528615,0.48120001,1897.0,1896.6,0.001]
[1772294528816,1.31793979,1896.9,1896.6,0.001]
[1772294529037,1.7991398,1896.9,1896.6,0.001]
[1772294529236,0.48120001,1896.8,1896.6,0.001]
[1772294530157,5.27325571,1897.1,1896.6,0.001]
[1772294530158,0.002,1897.1,1896.6,0.001]
[1772294530313,0.002,1897.1,1896.8,0.46890629]
[1772294530513,0.002,1897.1,1896.6,0.001]
[1772294530514,0.002,1898.1,1897.1,0.46890629]
[1772294530728,0.002,1898.4,1896.9,1.3]
[1772294530729,0.002,1898.4,1898.0,0.46890629]
[1772294531016,0.002,1898.4,1897.9,1.31724537]
[1772294531219,0.28035314,1898.2,1897.8,1.31725861]
[1772294531714,0.002,1898.2,1897.9,0.46890629]
[1772294532218,0.002,1898.2,1897.5,5.26925914]
[1772294532219,0.47920001,1898.1,1897.3,5.73939351]
[1772294532424,0.27835314,1898.1,1897.4,0.46890629]
[1772294533335,0.002,1898.2,1897.5,1.31752305]
[1772294533540,0.002,1898.0,1897.7,0.46890629]
[1772294534022,0.002,1898.2,1897.9,0.46890629]
[1772294534233,0.27835314,1898.1,1897.6,0.46890629]
[1772294534744,0.27835314,1898.0,1897.6,0.46890629]
[1772294534949,0.002,1898.0,1897.6,0.46890629]
[1772294535521,0.002,1898.0,1897.7,1.3173842]
[1772294535844,0.002,1898.2,1897.7,1.78629049]
[1772294536048,0.27835314,1898.1,1897.4,1.78646078]
[1772294536218,0.7606398,1898.1,1897.4,1.78646078]
[1772294536420,0.48228666,1898.1,1897.4,1.78646078]
[1772294537924,0.48228666,1898.1,1897.3,0.49673353]
[1772294537925,0.27835314,1898.0,1897.3,0.49673353]
[1772294539527,0.27635314,1897.9,1897.3,0.49673353]
[1772294539955,0.27835314,1897.8,1897.4,1.81432602]
[1772294540174,0.27635314,1897.9,1897.4,1.81432602]
[1772294540474,0.27835314,1898.0,1897.4,1.81432602]
[1772294540625,0.27635314,1897.9,1897.4,1.81432602]
[1772294541527,0.27635314,1897.9,1897.5,0.49673353]
[1772294541972,0.27635314,1897.9,1897.6,1.31745362]
[1772294542125,0.002,1898.2,1897.8,0.49673353]
[1772294543330,0.002,1897.9,1897.8,0.49673353]
[1772294543533,0.002,1898.0,1897.8,0.49673353]
[1772294544037,0.002,1898.6,1898.1,2.65163111]
[1772294544227,0.002,1898.9,1898.4,0.49673353]
[1772294544649,0.002,1898.9,1898.6,0.49673353]
[1772294544834,0.002,1899.1,1898.6,0.49673353]
[1772294546121,0.002,1899.1,1898.7,1.31669036]
[1772294547155,0.002,1899.1,1898.6,5.7635288]
[1772294547156,1.31844025,1899.1,1898.6,1.81343741]
[1772294547356,1.31844025,1899.1,1898.2,1.31703719]
[1772294547357,0.48228666,1898.9,1898.2,1.31703719]
[1772294547758,0.48228666,1898.9,1898.2,1.81377072]
[1772294547925,1.67642582,1899.0,1898.3,0.49673353]
[1772294548128,1.67642582,1899.0,1898.4,1.31689844]
[1772294551464,1.67642582,1899.0,1898.3,5.76445478]
[1772294552334,0.48228666,1898.9,1898.3,1.31696781]
[1772294553484,0.48228666,1898.9,1898.2,1.31698232]
[1772294553639,0.48228666,1898.9,1897.9,1.8139789]
[1772294554763,0.48228666,1898.7,1897.9,1.81397454]
[1772294556439,3.51262102,1898.8,1897.9,1.81397454]
[1772294556440,0.002,1898.8,1898.2,3.6155869]
[1772294556669,0.002,1898.8,1898.3,1.31696781]
[1772294557873,0.48428666,1898.8,1898.0,0.49673353]
[1772294558278,0.48428666,1898.8,1897.9,1.31724537]
[1772294558474,0.48228666,1898.7,1897.9,1.31724537]
[1772294558769,0.48228666,1898.7,1897.9,0.49673353]
[1772294558770,1.79904637,1898.6,1897.9,0.49673353]
[1772294559168,0.48228666,1898.5,1897.7,1.31732762]
[1772294559479,0.48228666,1898.2,1897.1,0.001]
[1772294559686,0.48228666,1897.6,1896.7,1.31804889]
[1772294559882,1.99028666,1897.5,1896.7,1.31804889]
[1772294560203,0.48228666,1897.4,1896.6,1.31911298]
[1772294560588,4.84740724,1897.7,1896.7,0.49673353]
[1772294560775,4.84740724,1897.7,1896.6,1.31914134]
[1772294560776,0.48228666,1897.4,1896.6,1.31914134]
[1772294561998,5.27009222,1897.6,1896.6,1.31914134]
[1772294561999,1.79976915,1897.6,1896.8,0.49673353]
[1772294562680,1.79976915,1897.6,1896.9,1.31793979]
[1772294563277,1.79976915,1897.6,1896.9,1.81467332]
[1772294564280,1.31725044,1897.9,1897.2,0.49425399]
[1772294564888,1.31725044,1897.9,1897.3,1.31766194]
[1772294566675,1.3171416,1898.1,1897.3,1.80881875]
[1772294567089,0.47884584,1898.0,1897.0,0.49115681]
[1772294567406,0.47884584,1897.8,1896.9,0.49115681]
[1772294567800,3.03176916,1898.0,1897.1,0.49115681]
[1772294567999,3.03176916,1898.0,1897.4,0.001]
[1772294568201,0.47884584,1897.9,1897.4,0.001]
[1772294568400,0.47884584,1897.8,1897.1,0.001]
[1772294568779,2.55292332,1898.0,1897.1,0.49215681]
[1772294568780,3.03176916,1898.0,1897.1,0.49215681]
[1772294569125,1.31708993,1898.2,1897.3,1.80881875]
[1772294569126,2.67084584,1898.2,1897.3,1.80881875]
[1772294569782,0.47884584,1898.2,1897.4,0.49115681]
[1772294570408,2.55603633,1898.3,1897.4,0.49115681]
[1772294571182,2.55603633,1898.3,1897.5,1.31752305]
[1772294571809,0.36503633,1898.3,1897.5,1.31752305]
[1772294572415,0.36503633,1898.3,1897.6,0.49115681]
[1772294573205,1e-08,1898.3,1897.7,1.80854101]
[1772294575890,1e-08,1898.3,1897.8,0.49115681]
[1772294577015,2.65384584,1898.7,1898.0,0.49115681]
[1772294577016,0.47884584,1898.7,1898.0,0.49115681]
[1772294577198,0.47884584,1898.7,1898.1,1.31710658]
[1772294578200,0.002,1898.8,1898.1,1.80826339]
[1772294578618,0.002,1898.8,1898.2,0.49115681]
[1772294579486,0.48084584,1898.8,1898.3,1.31696781]
[1772294580922,0.002,1898.8,1898.3,1.31696781]
[1772294581418,0.002,1898.5,1898.3,1.31696781]
[1772294582094,0.002,1898.5,1898.2,5.26787125]
[1772294584209,0.002,1898.8,1898.2,5.26787125]
[1772294584720,0.002,1898.8,1898.2,5.75902806]
[1772294584902,0.002,1898.8,1898.3,0.49115681]
[1772294585825,0.002,1899.1,1898.5,5.05632896]
[1772294586041,0.002,1899.1,1898.6,0.49115681]
[1772294587895,0.002,1899.1,1898.1,4.00998808]
[1772294587896,12.154502,1899.0,1898.1,1.31706117]
[1772294588099,0.47884584,1898.8,1898.1,1.31706117]
[1772294588328,0.47884584,1898.8,1897.9,5.26882559]
[1772294589924,0.002,1899.1,1898.0,0.49115681]
[1772294590232,0.47884584,1899.0,1898.2,0.49115681]
[1772294591248,0.47884584,1899.0,1898.0,0.49115681]
[1772294592336,1.31655168,1898.9,1898.1,1.80826339]
[1772294592535,1.79539752,1898.9,1898.1,1.80826339]
[1772294592837,0.47884584,1898.8,1898.1,1.80826339]
[1772294593333,0.47884584,1898.8,1898.1,1.80926339]
[1772294597236,1.79547694,1898.8,1898.1,1.80926339]
[1772294599338,0.45037321,1898.7,1898.1,1.80926339]
[1772294600609,0.45037321,1898.7,1898.1,0.001]
[1772294601044,0.45037321,1898.5,1898.1,0.001]
[1772294602013,1.76706809,1898.7,1898.1,0.4957407]
[1772294603152,0.45237321,1898.9,1898.3,0.4947407]
[1772294603317,1.76892894,1898.9,1898.3,0.4947407]
[1772294603520,0.45237321,1898.9,1898.3,0.4947407]
[1772294604346,1.76893669,1898.9,1898.3,0.4947407]
[1772294605442,1.76892573,1898.9,1898.4,1.31689844]
[1772294605840,1.76892573,1898.9,1898.3,0.4947407]
[1772294606038,1.76892573,1898.9,1898.1,0.001]
[1772294606039,0.45037321,1898.8,1898.1,1.81279294]
[1772294606540,0.002,1898.7,1898.2,0.001]
[1772294607146,0.45237321,1898.7,1898.2,0.001]
[1772294607728,1.31675971,1898.6,1898.2,0.001]
[1772294608225,1.31675971,1898.6,1898.0,0.001]
[1772294608226,0.45037321,1898.5,1898.0,0.001]
[1772294610352,0.45037321,1898.3,1897.8,0.001]
[1772294610553,0.45037321,1898.2,1897.8,0.001]
[1772294612317,1.31710658,1898.1,1897.8,0.001]
[1772294612841,2.153,1898.3,1897.8,0.001]
[1772294613156,0.45037321,1898.5,1897.8,0.001]
[1772294614657,0.45037321,1898.3,1897.8,0.001]
[1772294615466,1.31689844,1898.4,1897.8,0.001]
[1772294616156,0.45037321,1898.3,1897.8,0.001]
[1772294616859,1.31703719,1898.2,1897.8,0.001]
[1772294617356,1.76734102,1898.3,1897.8,0.001]
[1772294617531,2.60337321,1898.6,1897.8,0.4957407]
[1772294617740,3.26716537,1898.6,1897.8,0.4957407]
[1772294618253,0.45037321,1898.5,1897.8,0.4957407]
[1772294619140,1.31689844,1898.4,1897.9,1.31724537]
[1772294619656,1.76724615,1898.5,1897.9,1.31724537]
[1772294620051,1.76724615,1898.5,1897.9,1.31824537]
[1772294620257,1.76924615,1898.5,1897.9,1.31824537]
[1772294621143,0.45037321,1898.4,1897.9,0.001]
[1772294622757,1.31696781,1898.3,1897.9,0.001]
[1772294622949,1.76727165,1898.4,1897.9,0.4957407]
[1772294623144,1.76727165,1898.4,1897.9,0.001]
[1772294625551,0.48927581,1898.3,1897.9,0.001]
[1772294626958,1.31703719,1898.2,1897.9,0.001]
[1772294627534,5.75742458,1898.3,1897.9,0.001]
[1772294627535,1.80627247,1898.3,1897.9,0.001]
[1772294630442,0.48927581,1898.3,1897.9,0.001]
[1772294630633,1.80624899,1898.3,1897.9,0.001]
[1772294631048,1.8062506,1898.3,1897.9,0.001]
[1772294631251,1.31697479,1898.3,1897.9,0.48464169]
[1772294632866,1.31697479,1898.3,1898.0,0.001]
[1772294633275,0.002,1898.2,1898.0,0.001]
[1772294634477,0.002,1898.2,1898.0,0.48464169]
[1772294637082,0.002,1898.2,1897.9,0.48464169]
[1772294637248,0.48524694,1898.2,1897.9,0.001]
[1772294637745,0.48524694,1898.2,1897.6,0.001]
[1772294637946,0.48324694,1898.0,1897.4,0.001]
[1772294638176,0.48324694,1897.8,1897.4,0.001]
[1772294638381,3.61214175,1897.7,1896.8,0.48364169]
[1772294638685,0.48324694,1897.6,1896.8,0.48364169]
[1772294639241,1.31752305,1897.5,1896.8,1.80162416]
[1772294639446,1.80076999,1897.5,1896.8,1.80162416]
[1772294640071,1.80076999,1897.5,1896.9,0.48364169]
[1772294640681,1.3172948,1897.9,1897.1,3.61214175]
[1772294640850,0.48324694,1897.8,1897.0,0.48364169]
[1772294641562,1.80063114,1897.7,1897.1,1.80144254]
[1772294643281,5.2695368,1897.8,1897.1,1.80144254]
[1772294643282,3.4652302,1898.0,1897.2,0.48364169]
[1772294643452,0.48324694,1897.9,1897.3,1.31766194]
[1772294644982,0.48324694,1897.9,1897.3,1.80130363]
[1772294645364,2.148,1898.0,1897.4,0.48364169]
[1772294645766,0.48324694,1898.1,1897.5,1.80116474]
[1772294645958,1.31907516,1898.2,1897.6,0.48364169]
[1772294647389,0.002,1897.8,1897.6,0.48364169]
[1772294647774,0.002,1897.8,1897.7,1.3173842]
[1772294653270,0.002,1898.1,1897.8,0.48364169]
[1772294655097,0.002,1898.1,1897.8,1.80088971]
[1772294656096,1.75625317,1898.3,1897.8,1.80088971]
[1772294658394,1.75621728,1898.3,1897.8,1.80088971]
[1772294658996,0.43924694,1898.3,1897.8,1.80088971]
[1772294659289,0.002,1898.5,1897.9,0.49632832]
[1772294660195,0.002,1898.0,1897.9,0.49632832]
[1772294660391,0.002,1898.5,1898.0,0.49632832]
[1772294660392,0.002,1898.1,1898.0,0.49632832]
[1772294660596,0.002,1898.5,1898.1,0.49632832]
[1772294660793,0.002,1898.3,1898.1,0.49632832]
[1772294662897,0.002,1898.3,1898.2,1.31703719]
[1772294665894,0.002,1898.3,1898.2,1.81336551]
[1772294666095,0.002,1898.6,1898.4,0.49632832]
[1772294666799,0.002,1898.8,1898.5,0.49632832]
[1772294667004,0.002,1898.8,1898.6,1.31675971]
[1772294672988,0.002,1898.7,1898.6,1.31675971]
[1772294673408,0.002,1898.7,1898.0,1.31812697]
[1772294673409,0.48373173,1898.6,1898.0,1.31812697]
[1772294673710,0.48373173,1898.6,1898.0,0.001]
[1772294675490,0.48373173,1898.4,1898.0,0.001]
[1772294679118,0.48373173,1898.3,1898.0,0.001]
[1772294682419,0.48373173,1898.2,1897.7,0.001]
[1772294682596,0.48373173,1898.0,1897.7,0.001]
[1772294683115,2.03938229,1898.3,1897.4,6.48988411]
[1772294683116,0.48373173,1897.8,1897.4,0.001]
[1772294683317,0.48373173,1897.7,1897.4,0.001]
[1772294685813,1.80115433,1897.7,1897.4,0.001]
[1772294686120,0.46152652,1897.6,1897.4,0.001]
[1772294688217,0.46152652,1897.4,1897.1,0.001]
[1772294688726,0.46152652,1897.4,1897.0,0.8048101]
[1772294689021,3.44252305,1897.5,1896.3,0.065536]
[1772294689022,0.46152652,1897.1,1896.3,0.47273418]
[1772294689261,3.61430132,1897.2,1896.1,0.47273418]
[1772294689262,0.46152652,1896.9,1896.1,0.47273418]
[1772294689429,0.46152652,1896.8,1896.0,1.31853267]
[1772294689597,0.46152652,1896.6,1895.8,0.47273418]
[1772294689792,2.125,1896.7,1895.4,5.27537455]
[1772294689793,0.46152652,1896.4,1895.4,0.47273418]
[1772294690136,0.46152652,1896.4,1895.6,0.47273418]
[1772294690137,1.3183568,1896.3,1895.6,0.47273418]
[1772294690305,0.46152652,1896.2,1895.6,0.47273418]
[1772294690690,5.2732219,1896.4,1895.6,0.47273418]
[1772294690691,0.46152652,1896.4,1895.6,0.47273418]
[1772294691326,1.77968133,1896.6,1895.8,0.47273418]
[1772294692023,0.46152652,1896.6,1895.9,1.79136912]
[1772294692622,1.7797052,1896.6,1895.9,1.79136912]
[1772294693417,0.46152652,1896.5,1895.9,1.79136912]
[1772294693596,0.46152652,1896.5,1895.9,1.31863494]
[1772294694423,0.46152652,1896.5,1895.8,5.74727397]
[1772294694626,5.27236029,1896.7,1895.9,0.47273418]
[1772294694627,0.46152652,1896.7,1895.9,0.47273418]
[1772294695134,3.44205717,1896.8,1895.9,0.47273418]
[1772294695430,3.90358369,1896.8,1895.9,0.47273418]
[1772294696126,0.46152652,1896.8,1895.9,0.47273418]
[1772294696432,1.7795444,1896.8,1895.9,0.47273418]
[1772294696934,1.77953627,1896.8,1896.1,0.47273418]
[1772294697436,0.46152652,1896.8,1896.1,0.47273418]
[1772294697635,0.46152652,1897.0,1896.1,5.06528783]
[1772294697835,0.46152652,1897.0,1896.2,0.47273418]
[1772294698201,0.002,1896.9,1896.2,0.47273418]
[1772294698830,0.002,1896.9,1896.4,0.47273418]
[1772294701011,0.002,1897.2,1896.6,0.47273418]
[1772294702251,0.002,1897.2,1896.7,0.47273418]
[1772294704045,0.002,1897.2,1896.9,0.47273418]
[1772294704919,0.002,1897.2,1896.8,1.31800927]
[1772294705325,0.46352652,1897.2,1896.6,1.31810477]
[1772294705546,0.46352652,1897.2,1896.6,1.79083895]
[1772294707940,0.46152652,1897.1,1896.6,1.79083895]
[1772294708658,0.46152652,1897.1,1896.6,1.31810477]
[1772294708859,0.46152652,1897.1,1896.6,1.79083895]
[1772294709239,0.002,1897.2,1896.7,0.47273418]
[1772294709443,10.19611166,1898.4,1897.0,0.47273418]
[1772294709444,0.46152652,1897.5,1897.0,0.47273418]
[1772294710364,0.46152652,1897.5,1897.1,1.31780085]
[1772294711432,0.002,1897.2,1897.1,1.31780085]
[1772294712964,0.46152652,1897.5,1897.1,1.31780085]
[1772294714063,0.46152652,1897.4,1896.7,1.31902569]
[1772294714365,0.46152652,1897.4,1896.7,1.79175987]
[1772294714565,0.46152652,1897.3,1896.7,1.79175987]
[1772294717558,1.77918882,1897.3,1896.7,1.79175987]
[1772294717950,1.3176623,1897.3,1896.7,1.79175987]
[1772294718247,0.45151358,1897.2,1896.7,1.79175987]
[1772294721473,0.45151358,1897.6,1896.8,0.4749115]
[1772294721659,0.45151358,1897.6,1896.7,0.001]
[1772294723671,0.45151358,1897.4,1896.8,0.001]
[1772294724076,0.45151358,1897.2,1896.8,0.001]
[1772294725179,0.45151358,1897.0,1896.5,0.001]
[1772294725673,0.45151358,1896.8,1896.5,0.001]
[1772294726048,0.45151358,1896.8,1896.0,0.001]
[1772294726449,6.38322762,1896.9,1896.0,0.001]
[1772294726450,0.45151358,1896.5,1896.0,0.001]
[1772294726813,0.45151358,1896.3,1896.0,0.001]
[1772294727449,2.55051358,1896.3,1896.0,0.001]
[1772294727649,0.45151358,1896.2,1896.0,0.001]
[1772294728153,5.06528783,1896.6,1896.0,0.001]
[1772294728154,1.76973134,1896.5,1896.0,0.001]
[1772294728473,0.45151358,1896.4,1896.0,0.001]
[1772294728683,0.45151358,1896.4,1895.1,1.79403349]
[1772294728902,0.45151358,1896.1,1895.0,1.31926121]
[1772294729046,0.45151358,1896.1,1895.1,0.4749115]
[1772294729249,0.45151358,1896.0,1895.1,0.4749115]
[1772294730147,0.45151358,1895.7,1895.0,1.31926121]
[1772294730375,0.45151358,1895.7,1895.1,0.4749115]
[1772294730950,0.45151358,1895.7,1895.0,1.31926121]
[1772294732266,0.45151358,1895.5,1894.8,5.27745157]
[1772294732777,0.45151358,1895.5,1894.5,1.31960939]
[1772294733078,1.31884363,1895.6,1894.4,0.4749115]
[1772294733079,0.45151358,1895.0,1894.4,0.4749115]
[1772294733278,0.45151358,1894.8,1894.4,0.4749115]
[1772294733461,0.45151358,1895.2,1894.4,0.4749115]
[1772294733849,0.45151358,1895.2,1894.4,0.61458218]
[1772294734377,0.45151358,1895.2,1894.5,1.31960939]
[1772294734784,0.45151358,1895.1,1894.5,1.31960939]
[1772294735874,0.45151358,1895.1,1894.6,0.4749115]
[1772294736476,0.45151358,1895.1,1894.7,1.3194701]
[1772294736678,0.45151358,1895.4,1894.7,1.3194701]
[1772294736878,0.45151358,1895.4,1894.8,0.4749115]
[1772294737083,0.002,1895.1,1894.8,0.4749115]
[1772294738677,0.002,1895.1,1894.8,1.79426396]
[1772294738678,0.45351358,1895.1,1894.8,1.79426396]
[1772294738869,0.45351358,1895.1,1894.8,1.79430753]
[1772294739889,0.45351358,1895.1,1894.8,0.4749115]
[1772294740087,0.45351358,1895.1,1894.5,1.3195658]
[1772294740255,0.45351358,1895.1,1894.5,0.4749115]
[1772294740462,0.45351358,1895.1,1894.4,0.001]
[1772294740463,0.45151358,1894.9,1894.4,0.001]
[1772294740657,0.45151358,1894.7,1894.4,0.4759115]
[1772294740888,0.45151358,1894.7,1894.1,0.001]
[1772294741187,0.45151358,1894.5,1894.1,0.001]
[1772294741657,0.45151358,1894.5,1894.1,1.32087653]
[1772294742590,1.31940046,1894.8,1894.1,0.001]
[1772294742591,0.45151358,1894.8,1894.1,0.001]
[1772294742754,1.77093247,1894.8,1894.1,0.001]
[1772294742956,0.45151358,1894.8,1894.1,0.001]
[1772294744685,0.46461374,1894.7,1894.1,0.001]
[1772294746693,0.46309482,1894.5,1894.1,0.001]
[1772294746856,0.46309482,1894.5,1893.5,5.28066747]
[1772294747183,1.31953974,1894.6,1893.5,5.42233815]
[1772294747184,0.46309482,1894.4,1893.5,5.42233815]
[1772294747486,0.46309482,1894.4,1893.5,5.28066747]
[1772294747886,0.46309482,1894.4,1893.4,1.32030631]
[1772294747887,0.46309482,1894.4,1893.4,5.28129444]
[1772294748756,0.46309482,1894.4,1893.1,1.32058528]
[1772294748757,0.46309482,1894.2,1893.1,1.32058528]
[1772294749385,0.46309482,1894.2,1893.5,5.20695851]
[1772294749681,0.46309482,1894.5,1893.5,5.20695851]
[1772294750583,0.46309482,1894.5,1893.6,0.14167068]
[1772294750787,0.46309482,1894.5,1893.7,1.32016686]
[1772294751469,0.46309482,1894.4,1893.7,1.32016686]
[1772294752787,0.46309482,1894.8,1893.9,1.32002745]
[1772294753490,0.46309482,1894.8,1893.9,6.38531528]
[1772294753686,0.46309482,1894.8,1893.9,6.52698596]
[1772294754475,0.46309482,1894.7,1893.9,1.46169813]
[1772294754874,0.46309482,1894.6,1893.9,1.46169813]
[1772294755072,0.46309482,1894.6,1893.9,1.32002745]
[1772294755690,0.46309482,1894.6,1894.0,5.06528783]
[1772294755989,0.002,1895.1,1894.3,5.20695851]
[1772294756189,0.46509482,1895.1,1894.3,5.20695851]
[1772294756578,0.46309482,1895.0,1894.3,5.06528783]
[1772294756780,0.46309482,1895.0,1894.2,2.54131978]
[1772294757991,0.46309482,1895.0,1894.3,1.31974871]
[1772294758489,0.46309482,1894.9,1894.3,1.31974871]
[1772294759978,0.46309482,1894.7,1894.0,1.31995776]
[1772294760787,0.46309482,1895.0,1894.3,3.7673504]
[1772294761890,0.002,1895.1,1894.5,3.7673504]
[1772294762087,0.002,1895.1,1894.6,1.31953974]
[1772294762489,0.46509482,1895.4,1894.7,3.62567972]
[1772294762875,0.002,1894.9,1894.8,0.13967068]
[1772294763187,0.002,1895.4,1894.8,0.13967068]
[1772294763188,0.002,1895.4,1894.9,0.13967068]
[1772294763593,0.46309482,1896.0,1894.9,0.13967068]
[1772294764101,0.46309482,1895.9,1895.0,1.31926121]
[1772294765302,0.46309482,1896.8,1895.3,28.59132568]
[1772294765511,0.46309482,1896.8,1896.1,3.62567972]
[1772294765889,0.46309482,1897.2,1896.5,3.62567972]
[1772294766090,1.78082733,1897.2,1896.6,1.31814826]
[1772294766413,1.78082733,1897.2,1896.2,1.31842632]
[1772294766414,0.46309482,1897.1,1896.2,1.31842632]
[1772294766571,0.46309482,1897.1,1895.8,3.7653504]
[1772294766572,0.46309482,1897.1,1895.9,1.31863494]
[1772294766776,0.46309482,1897.1,1896.0,3.62567972]
[1772294767975,0.46309482,1897.1,1895.9,1.31863494]
[1772294769211,0.46309482,1896.9,1896.0,3.62567972]
[1772294772229,0.46309482,1897.1,1896.4,3.62567972]
[1772294772386,0.46309482,1897.1,1896.2,3.62567972]
[1772294772779,0.46309482,1897.1,1896.4,3.62567972]
[1772294773203,0.46309482,1897.1,1896.2,3.62567972]
[1772294773407,0.46309482,1897.1,1896.4,3.62567972]
[1772294773789,0.46309482,1897.1,1896.6,3.62567972]
[1772294774113,0.002,1897.3,1896.9,1.31793979]
[1772294774504,0.46509482,1897.3,1896.9,1.31793979]
[1772294775813,0.002,1897.1,1896.9,1.31793979]
[1772294779116,0.002,1897.3,1896.9,1.31793979]
[1772294779981,0.002,1897.3,1896.6,3.62567972]
[1772294779982,0.49134531,1897.3,1896.6,3.62567972]
[1772294780183,0.49134531,1897.3,1896.5,5.27283506]
[1772294780421,0.49134531,1897.3,1896.6,3.62567972]
[1772294780616,0.49134531,1897.3,1896.7,1.31807876]
[1772294780821,0.49134531,1897.3,1896.8,3.62567972]
[1772294782716,1.80900857,1897.3,1896.6,3.62567972]
[1772294782916,0.49134531,1897.3,1896.6,3.62567972]
[1772294784844,0.48934531,1897.2,1896.3,1.3183568]
[1772294785407,0.48934531,1897.2,1896.4,3.62567972]
[1772294785813,0.48934531,1897.2,1896.3,1.3183568]
[1772294786739,0.48934531,1897.0,1896.1,1.31849585]
[1772294787109,1.31780085,1897.1,1895.7,3.62567972]
[1772294787110,0.48934531,1896.9,1895.7,3.62567972]
[1772294787631,0.48934531,1896.9,1895.9,3.62567972]
[1772294787835,0.48934531,1896.7,1895.9,3.62567972]
[1772294788739,0.48934531,1896.7,1896.2,0.001]
[1772294788944,0.48934531,1896.5,1896.2,0.001]
[1772294790244,0.48934531,1896.7,1896.2,0.001]
[1772294792235,1.80743312,1896.7,1896.2,0.001]
[1772294793943,0.48934531,1896.6,1896.2,0.001]
[1772294794446,1.35134531,1896.8,1896.2,0.001]
[1772294794621,5.27295572,1897.2,1896.5,3.62567972]
[1772294794622,0.48934531,1897.0,1896.5,3.62567972]
[1772294794821,0.48934531,1897.0,1896.2,0.001]
[1772294794822,0.48934531,1896.9,1896.2,0.001]
[1772294796153,0.48934531,1896.9,1896.2,0.13867068]
[1772294796321,1.80718585,1897.1,1896.3,1.45602748]
[1772294796653,0.48934531,1897.0,1896.4,3.62567972]
[1772294798155,0.48934531,1897.0,1896.3,1.3183568]
[1772294798341,0.48934531,1897.0,1896.2,5.2744272]
[1772294798541,0.48934531,1897.0,1896.3,3.62567972]
[1772294799535,0.48934531,1896.9,1896.2,5.41209788]
[1772294800258,0.48934531,1896.9,1896.2,0.001]
[1772294800561,0.48934531,1896.7,1896.2,0.001]
[1772294802531,1.80749357,1896.6,1896.2,0.001]
[1772294802749,0.48934531,1896.5,1896.2,0.001]
[1772294805655,0.48338388,1896.4,1896.2,0.001]
[1772294808552,5.27259542,1896.6,1896.2,0.001]
[1772294808553,0.48936356,1896.6,1896.2,0.001]
[1772294808755,2.54536356,1896.8,1896.2,3.62667972]
[1772294809051,1.80738487,1896.8,1896.2,3.7653504]
[1772294809379,0.48936356,1896.7,1896.2,0.001]
[1772294809582,0.48936356,1896.7,1896.0,0.001]
[1772294809877,0.48936356,1896.5,1896.0,0.001]
[1772294813461,0.48936356,1896.5,1896.1,3.62567972]
[1772294814474,0.48936356,1896.5,1896.2,0.001]
[1772294815581,0.48836356,1896.5,1896.2,1.31842632]
[1772294816346,0.39757749,1896.5,1896.2,1.31842632]
[1772294816547,0.002,1897.0,1896.4,3.62567972]
[1772294816742,0.002,1897.0,1896.7,3.62567972]
[1772294817638,0.49136356,1897.0,1896.5,3.62567972]
[1772294817841,0.49136356,1897.0,1896.5,1.31817041]
[1772294818064,0.002,1896.9,1896.5,1.31817041]
[1772294818272,0.49136356,1896.9,1896.5,1.31817041]
[1772294819175,0.49136356,1896.9,1896.5,4.94385013]
[1772294819375,0.49136356,1896.9,1896.5,1.31817041]
[1772294819941,0.002,1896.9,1896.5,1.31817041]
[1772294820278,0.002,1896.9,1896.7,5.06232848]
[1772294820590,0.48936356,1896.8,1896.0,6.38189222]
[1772294820797,0.48936356,1896.8,1896.0,1.31955647]
[1772294821166,0.48936356,1896.8,1896.0,0.001]
[1772294821896,1.31807876,1896.7,1896.0,0.001]
[1772294822082,0.48936356,1896.6,1896.0,0.001]
[1772294824289,1.31821776,1896.5,1896.0,0.001]
[1772294824470,1.80758132,1896.5,1896.0,0.001]
[1772294824881,0.48936356,1896.5,1896.0,0.001]
[1772294827080,1.80762415,1896.5,1896.0,0.001]
[1772294828180,1.31826059,1896.5,1896.0,0.001]
[1772294828381,0.48936356,1896.4,1896.0,0.001]
[1772294829598,1.807653,1896.4,1896.0,0.001]
[1772294829784,0.48936356,1896.4,1896.0,0.001]
[1772294830189,1.80765229,1896.4,1896.0,0.001]
[1772294831200,1.80765229,1896.4,1896.1,0.001]
[1772294831598,1.80965229,1896.4,1896.1,0.001]
[1772294831779,0.002,1896.5,1896.2,0.49710092]
[1772294832304,1.32021953,1896.5,1896.1,0.001]
[1772294832603,1.32021953,1896.5,1895.9,0.001]
[1772294832604,0.48936356,1896.4,1895.9,0.001]
[1772294833105,0.48936356,1896.4,1895.7,0.001]